[Event "Mistrovství Čech mládeže 2023 - HD16"]
[Site "Harrachov, Czech Republic"]
[Date "2023.10.21"]
[Round "1.17"]
[White "Sochor, Antonín"]
[Black "Rubin, Andrej"]
[Result "1-0"]
[TimeControl "90m + 30s"]
[WhiteElo "1702"]
[BlackElo "1358"]

1. d4 {[%clk 01:30:52]} {[%emt 00:00:07]} Nf6 {[%clk 01:30:59]} {[%emt
00:00:02]} 2. Nf3 {[%clk 01:31:05]} {[%emt 00:00:18]} d5 {[%clk 01:31:10]}
{[%emt 00:00:18]} 3. Bf4 {[%clk 01:31:25]} {[%emt 00:00:10]} c5 {[%clk
01:31:24]} {[%emt 00:00:16]} 4. e3 {[%clk 01:31:39]} {[%emt 00:00:15]} Nc6
{[%clk 01:31:24]} {[%emt 00:00:31]} 5. c3 {[%clk 01:30:52]} {[%emt 00:01:17]}
Qb6 {[%clk 01:31:14]} {[%emt 00:00:40]} 6. Qc2 {[%clk 01:30:22]} {[%emt
00:00:59]} Bf5 {[%clk 01:31:01]} {[%emt 00:00:43]} 7. Qxf5 {[%clk 01:29:42]}
{[%emt 00:01:11]} Qxb2 {[%clk 01:31:05]} {[%emt 00:00:26]} 8. Be2 {[%clk
01:29:31]} {[%emt 00:00:41]} e6 {[%clk 01:26:17]} {[%emt 00:05:18]} 9. Qd3
{[%clk 01:29:19]} {[%emt 00:00:41]} c4 {[%clk 01:24:42]} {[%emt 00:02:06]} 10.
Qd2 {[%clk 01:28:48]} {[%emt 00:01:00]} Qxa1 {[%clk 01:24:20]} {[%emt
00:00:53]} 11. O-O {[%clk 01:28:16]} {[%emt 00:01:01]} Ne4 {[%clk 01:23:38]}
{[%emt 00:01:13]} 12. Qc2 {[%clk 01:27:52]} {[%emt 00:00:54]} Ba3 {[%clk
01:18:14]} {[%emt 00:05:53]} 13. Nxa3 {[%clk 01:20:45]} {[%emt 00:07:38]} Qxc3
{[%clk 01:18:32]} {[%emt 00:00:13]} 14. Qc1 {[%clk 01:20:15]} {[%emt 00:00:58]}
a6 {[%clk 01:16:19]} {[%emt 00:02:44]} 15. Ng5 {[%clk 01:18:17]} {[%emt
00:02:27]} Qxc1 {[%clk 01:13:19]} {[%emt 00:03:31]} 16. Rxc1 {[%clk 01:18:20]}
{[%emt 00:00:27]} Nf6 {[%clk 01:12:29]} {[%emt 00:01:20]} 17. Be5 {[%clk
01:12:28]} {[%emt 00:06:23]} h6 {[%clk 01:09:46]} {[%emt 00:03:12]} 18. Bxf6
{[%clk 01:10:59]} {[%emt 00:01:59]} gxf6 {[%clk 01:09:48]} {[%emt 00:00:29]} 19.
Nh3 {[%clk 01:11:10]} {[%emt 00:00:18]} b5 {[%clk 01:08:21]} {[%emt 00:01:56]}
20. Nc2 {[%clk 01:10:53]} {[%emt 00:00:48]} e5 {[%clk 01:01:42]} {[%emt
00:07:09]} 21. Rd1 {[%clk 01:04:25]} {[%emt 00:06:58]} O-O-O {[%clk 00:54:44]}
{[%emt 00:07:28]} 22. f4 {[%clk 01:03:01]} {[%emt 00:01:53]} e4 {[%clk
00:51:49]} {[%emt 00:03:25]} 23. Nf2 {[%clk 01:02:12]} {[%emt 00:01:19]} f5
{[%clk 00:50:35]} {[%emt 00:01:45]} 24. g4 {[%clk 01:02:13]} {[%emt 00:00:29]}
Rhg8 {[%clk 00:49:55]} {[%emt 00:01:10]} 25. Kh1 {[%clk 01:02:25]} {[%emt
00:00:18]} fxg4 {[%clk 00:48:44]} {[%emt 00:01:41]} 26. Nxg4 {[%clk 01:02:12]}
{[%emt 00:00:42]} Rg6 {[%clk 00:45:40]} {[%emt 00:03:35]} 27. f5 {[%clk
01:01:00]} {[%emt 00:01:22]} Rgd6 {[%clk 00:41:02]} {[%emt 00:05:29]} 28. Ne5
{[%clk 01:00:49]} {[%emt 00:00:41]} Rf8 {[%clk 00:37:27]} {[%emt 00:04:04]} 29.
Rg1 {[%clk 00:58:55]} {[%emt 00:02:22]} a5 {[%clk 00:33:15]} {[%emt 00:04:43]}
30. a3 {[%clk 00:58:44]} {[%emt 00:00:42]} Kc7 {[%clk 00:32:01]} {[%emt
00:01:44]} 31. Rg7 {[%clk 00:57:13]} {[%emt 00:02:01]} Rf6 {[%clk 00:31:09]}
{[%emt 00:01:22]} 32. Ng6 {[%clk 00:51:42]} {[%emt 00:06:00]} Rb8 {[%clk
00:29:45]} {[%emt 00:01:55]} 33. Bg4 {[%clk 00:51:12]} {[%emt 00:00:58]} Kd8
{[%clk 00:25:48]} {[%emt 00:04:29]} 34. Nf4 {[%clk 00:50:27]} {[%emt 00:01:14]}
b4 {[%clk 00:20:32]} {[%emt 00:05:48]} 35. axb4 {[%clk 00:50:35]} {[%emt
00:00:21]} axb4 {[%clk 00:17:25]} {[%emt 00:03:37]} 36. Nxd5 {[%clk 00:49:55]}
{[%emt 00:01:10]} Rd6 {[%clk 00:15:42]} {[%emt 00:02:13]} 37. Rg8+ {[%clk
00:49:28]} {[%emt 00:00:57]} Kd7 {[%clk 00:15:20]} {[%emt 00:00:52]} 38. f6+
{[%clk 00:49:37]} {[%emt 00:00:21]} Re6 {[%clk 00:15:02]} {[%emt 00:00:49]} 39.
Rxb8 {[%clk 00:49:32]} {[%emt 00:00:34]} Nxb8 {[%clk 00:15:09]} {[%emt
00:00:23]} 40. Ndxb4 {[%clk 00:49:23]} {[%emt 00:00:40]} Kd6 {[%clk 00:14:32]}
{[%emt 00:01:06]} 41. Bxe6 {[%clk 00:48:54]} {[%emt 00:00:59]} Kxe6 {[%clk
00:14:33]} {[%emt 00:00:29]} 42. Na3 {[%clk 00:48:34]} {[%emt 00:00:50]} Kxf6
{[%clk 00:13:36]} {[%emt 00:01:28]} 43. Nxc4 {[%clk 00:48:46]} {[%emt
00:00:17]} Ke6 {[%clk 00:13:38]} {[%emt 00:00:28]} 44. d5+ {[%clk 00:48:01]}
{[%emt 00:01:15]} Kd7 {[%clk 00:13:43]} {[%emt 00:00:25]} 45. Ne5+ {[%clk
00:47:58]} {[%emt 00:00:32]} Ke7 {[%clk 00:13:29]} {[%emt 00:00:44]} 46. Nec6+
{[%clk 00:48:02]} {[%emt 00:00:27]} Nxc6 {[%clk 00:13:47]} {[%emt 00:00:12]} 47.
dxc6 {[%clk 00:48:25]} {[%emt 00:00:08]} Kd6 {[%clk 00:13:29]} {[%emt
00:00:47]} 48. Kg2 {[%clk 00:48:43]} {[%emt 00:00:12]} f5 {[%clk 00:12:56]}
{[%emt 00:01:03]} 49. Kg3 {[%clk 00:49:00]} {[%emt 00:00:13]} 1-0

[Event "Mistrovství Čech mládeže 2023 - HD16"]
[Site "Harrachov, Czech Republic"]
[Date "2023.10.21"]
[Round "1.18"]
[White "Šlosar, Jan"]
[Black "Garabik, Marek"]
[Result "1/2-1/2"]
[TimeControl "90m + 30s"]
[WhiteElo "1346"]
[BlackElo "1697"]

1. d4 {[%clk 01:30:52]} {[%emt 00:00:07]} e6 {[%clk 01:30:55]} {[%emt
00:00:05]} 2. Nf3 {[%clk 01:31:14]} {[%emt 00:00:08]} d5 {[%clk 01:30:53]}
{[%emt 00:00:32]} 3. c4 {[%clk 01:31:33]} {[%emt 00:00:11]} Nf6 {[%clk
01:30:44]} {[%emt 00:00:39]} 4. Nc3 {[%clk 01:31:25]} {[%emt 00:00:38]} c5
{[%clk 01:30:02]} {[%emt 00:01:13]} 5. e3 {[%clk 01:30:44]} {[%emt 00:01:10]}
b6 {[%clk 01:24:04]} {[%emt 00:06:28]} 6. Bd3 {[%clk 01:29:50]} {[%emt
00:01:23]} Nc6 {[%clk 01:18:11]} {[%emt 00:06:24]} 7. a3 {[%clk 01:28:25]}
{[%emt 00:01:56]} Bb7 {[%clk 01:13:21]} {[%emt 00:05:20]} 8. O-O {[%clk
01:24:51]} {[%emt 00:04:03]} Rc8 {[%clk 01:10:45]} {[%emt 00:03:06]} 9. b3
{[%clk 01:24:32]} {[%emt 00:00:44]} Bd6 {[%clk 01:07:55]} {[%emt 00:03:25]} 10.
Bb2 {[%clk 01:21:37]} {[%emt 00:03:24]} O-O {[%clk 01:06:17]} {[%emt 00:02:10]}
11. Rc1 {[%clk 01:19:51]} {[%emt 00:02:16]} Qe7 {[%clk 00:57:15]} {[%emt
00:09:32]} 12. Nb5 {[%clk 01:18:21]} {[%emt 00:01:59]} Bb8 {[%clk 00:54:19]}
{[%emt 00:03:26]} 13. Re1 {[%clk 01:17:46]} {[%emt 00:01:05]} a6 {[%clk
00:51:48]} {[%emt 00:03:01]} 14. Nc3 {[%clk 01:10:17]} {[%emt 00:07:59]} Rfd8
{[%clk 00:50:30]} {[%emt 00:01:48]} 15. Bb1 {[%clk 01:10:08]} {[%emt 00:00:39]}
Qc7 {[%clk 00:48:26]} {[%emt 00:02:33]} 16. cxd5 {[%clk 01:08:48]} {[%emt
00:01:51]} exd5 {[%clk 00:46:26]} {[%emt 00:02:30]} 17. Ne2 {[%clk 01:08:12]}
{[%emt 00:01:06]} Qe7 {[%clk 00:44:42]} {[%emt 00:02:14]} 18. Ng3 {[%clk
01:07:06]} {[%emt 00:01:36]} Na5 {[%clk 00:39:19]} {[%emt 00:05:54]} 19. dxc5
{[%clk 01:05:27]} {[%emt 00:02:08]} bxc5 {[%clk 00:31:01]} {[%emt 00:08:48]} 20.
Bc3 {[%clk 01:02:29]} {[%emt 00:03:29]} Bc7 {[%clk 00:30:35]} {[%emt 00:00:56]}
21. b4 {[%clk 01:02:48]} {[%emt 00:00:11]} Bxg3 {[%clk 00:23:37]} {[%emt
00:07:27]} 22. hxg3 {[%clk 01:00:49]} {[%emt 00:02:29]} Nc4 {[%clk 00:21:08]}
{[%emt 00:02:59]} 23. bxc5 {[%clk 00:59:26]} {[%emt 00:01:53]} Nxa3 {[%clk
00:17:07]} {[%emt 00:04:31]} 24. Bf5 {[%clk 00:58:21]} {[%emt 00:01:34]} Ra8
{[%clk 00:14:04]} {[%emt 00:03:34]} 25. c6 {[%clk 00:56:53]} {[%emt 00:01:59]}
Bc8 {[%clk 00:12:56]} {[%emt 00:01:38]} 26. c7 {[%clk 00:55:54]} {[%emt
00:01:29]} Re8 {[%clk 00:11:06]} {[%emt 00:02:19]} 1/2-1/2

[Event "Mistrovství Čech mládeže 2023 - HD16"]
[Site "Harrachov, Czech Republic"]
[Date "2023.10.21"]
[Round "1.19"]
[White "Langmaier, Michal"]
[Black "Lána, Vincent"]
[Result "1-0"]
[TimeControl "90m + 30s"]
[WhiteElo "1697"]
[BlackElo "1342"]

1. d4 {[%clk 01:30:57]} {[%emt 00:00:02]} e6 {[%clk 01:30:52]} {[%emt
00:00:09]} 2. Nf3 {[%clk 01:31:07]} {[%emt 00:00:19]} c5 {[%clk 01:30:42]}
{[%emt 00:00:41]} 3. c4 {[%clk 01:28:48]} {[%emt 00:02:49]} d5 {[%clk
01:30:58]} {[%emt 00:00:14]} 4. Nc3 {[%clk 01:28:18]} {[%emt 00:00:59]} Nf6
{[%clk 01:31:07]} {[%emt 00:00:20]} 5. cxd5 {[%clk 01:28:02]} {[%emt 00:00:47]}
Nxd5 {[%clk 01:31:11]} {[%emt 00:00:27]} 6. e4 {[%clk 01:17:31]} {[%emt
00:11:01]} Nxc3 {[%clk 01:28:45]} {[%emt 00:02:55]} 7. bxc3 {[%clk 01:17:22]}
{[%emt 00:00:39]} cxd4 {[%clk 01:27:48]} {[%emt 00:01:28]} 8. cxd4 {[%clk
01:15:10]} {[%emt 00:02:42]} Bb4+ {[%clk 01:21:26]} {[%emt 00:06:51]} 9. Bd2
{[%clk 01:13:59]} {[%emt 00:01:41]} Qa5 {[%clk 01:21:05]} {[%emt 00:00:52]} 10.
Bxb4 {[%clk 01:09:36]} {[%emt 00:04:53]} Qxb4+ {[%clk 01:21:16]} {[%emt
00:00:18]} 11. Qd2 {[%clk 01:09:58]} {[%emt 00:00:08]} Qxd2+ {[%clk 01:21:09]}
{[%emt 00:00:37]} 12. Kxd2 {[%clk 01:10:14]} {[%emt 00:00:14]} b6 {[%clk
01:19:16]} {[%emt 00:02:24]} 13. Rc1 {[%clk 01:08:14]} {[%emt 00:02:29]} Ba6
{[%clk 01:18:37]} {[%emt 00:01:08]} 14. Be2 {[%clk 01:00:44]} {[%emt 00:08:00]}
Bxe2 {[%clk 01:14:41]} {[%emt 00:04:26]} 15. Rc8+ {[%clk 00:59:27]} {[%emt
00:01:48]} 1-0

[Event "Mistrovství Čech mládeže 2023 - HD16"]
[Site "Harrachov, Czech Republic"]
[Date "2023.10.21"]
[Round "1.20"]
[White "Jirman, Jonáš"]
[Black "Tichý, Tomáš"]
[Result "1/2-1/2"]
[TimeControl "90m + 30s"]
[WhiteElo "1328"]
[BlackElo "1697"]

1. e4 {[%clk 01:30:59]} c5 {[%clk 01:30:36]} {[%emt 00:00:25]} 2. d4 {[%clk
01:30:59]} {[%emt 00:00:29]} cxd4 {[%clk 01:30:16]} {[%emt 00:00:51]} 3. c3
{[%clk 01:30:31]} {[%emt 00:00:58]} d5 {[%clk 01:28:43]} {[%emt 00:02:03]} 4.
exd5 {[%clk 01:30:32]} {[%emt 00:00:29]} Qxd5 {[%clk 01:28:07]} {[%emt
00:01:06]} 5. cxd4 {[%clk 01:30:16]} {[%emt 00:00:45]} e6 {[%clk 01:21:08]}
{[%emt 00:07:29]} 6. Nf3 {[%clk 01:28:12]} {[%emt 00:02:34]} Nf6 {[%clk
01:18:04]} {[%emt 00:03:35]} 7. Be2 {[%clk 01:25:29]} {[%emt 00:03:12]} Nc6
{[%clk 01:08:17]} {[%emt 00:10:17]} 8. a3 {[%clk 01:24:08]} {[%emt 00:01:52]}
Be7 {[%clk 01:06:45]} {[%emt 00:02:02]} 9. O-O {[%clk 01:24:11]} {[%emt
00:00:26]} O-O {[%clk 01:06:29]} {[%emt 00:00:47]} 10. Nc3 {[%clk 01:22:41]}
{[%emt 00:02:00]} Qd7 {[%clk 01:03:28]} {[%emt 00:03:31]} 11. Qd3 {[%clk
01:18:04]} {[%emt 00:05:06]} Rd8 {[%clk 01:01:41]} {[%emt 00:02:18]} 12. Rd1
{[%clk 01:17:04]} {[%emt 00:01:30]} a6 {[%clk 00:59:26]} {[%emt 00:02:45]} 13.
b4 {[%clk 01:14:41]} {[%emt 00:02:52]} b5 {[%clk 00:57:37]} {[%emt 00:02:19]}
14. Bb2 {[%clk 01:13:46]} {[%emt 00:01:25]} Bb7 {[%clk 00:55:43]} {[%emt
00:02:24]} 15. Rac1 {[%clk 01:12:23]} {[%emt 00:01:52]} Nd5 {[%clk 00:52:46]}
{[%emt 00:03:27]} 16. Ne4 {[%clk 00:53:11]} {[%emt 00:19:42]} Bf6 {[%clk
00:39:17]} {[%emt 00:14:00]} 17. Nc5 {[%clk 00:48:57]} {[%emt 00:04:44]} Qe7
{[%clk 00:36:25]} {[%emt 00:03:22]} 18. Qb3 {[%clk 00:46:45]} {[%emt 00:02:43]}
Nf4 {[%clk 00:29:03]} {[%emt 00:07:52]} 19. Bf1 {[%clk 00:46:19]} {[%emt
00:00:55]} Rd5 {[%clk 00:27:26]} {[%emt 00:02:07]} 20. g3 {[%clk 00:45:13]}
{[%emt 00:01:37]} Ng6 {[%clk 00:25:22]} {[%emt 00:02:33]} 21. Bg2 {[%clk
00:45:01]} {[%emt 00:00:42]} Nd8 {[%clk 00:13:24]} {[%emt 00:12:28]} 22. Ne1
{[%clk 00:38:07]} {[%emt 00:07:24]} Rd6 {[%clk 00:12:14]} {[%emt 00:01:40]} 23.
Nxb7 {[%clk 00:36:42]} {[%emt 00:01:56]} Nxb7 {[%clk 00:12:31]} {[%emt
00:00:13]} 24. Rc2 {[%clk 00:35:48]} {[%emt 00:01:23]} Rad8 {[%clk 00:11:38]}
{[%emt 00:01:24]} 25. Qf3 {[%clk 00:30:35]} {[%emt 00:05:43]} 1/2-1/2

[Event "Mistrovství Čech mládeže 2023 - HD16"]
[Site "Harrachov, Czech Republic"]
[Date "2023.10.22"]
[Round "2.1"]
[White "Mrázek, Adam"]
[Black "Davídek, Zdeněk"]
[Result "0-1"]
[TimeControl "90m + 30s"]
[WhiteElo "1669"]
[BlackElo "2110"]

1. Nf3 {[%clk 01:30:56]} {[%emt 00:00:03]} Nf6 {[%clk 01:30:49]} {[%emt
00:00:11]} 2. g3 {[%clk 01:31:19]} {[%emt 00:00:08]} d5 {[%clk 01:31:13]}
{[%emt 00:00:06]} 3. d4 {[%clk 01:31:18]} {[%emt 00:00:31]} c5 {[%clk
01:31:23]} {[%emt 00:00:20]} 4. Bg2 {[%clk 01:29:29]} {[%emt 00:02:19]} h6
{[%clk 01:30:30]} {[%emt 00:01:22]} 5. O-O {[%clk 01:26:52]} {[%emt 00:03:07]}
cxd4 {[%clk 01:30:52]} {[%emt 00:00:08]} 6. Nxd4 {[%clk 01:25:24]} {[%emt
00:01:59]} e5 {[%clk 01:30:14]} {[%emt 00:01:08]} 7. Nb3 {[%clk 01:25:02]}
{[%emt 00:00:52]} Nc6 {[%clk 01:30:38]} {[%emt 00:00:05]} 8. Nc3 {[%clk
01:23:58]} {[%emt 00:01:34]} Be6 {[%clk 01:31:01]} {[%emt 00:00:07]} 9. f4
{[%clk 01:21:02]} {[%emt 00:03:26]} e4 {[%clk 01:31:03]} {[%emt 00:00:29]} 10.
e3 {[%clk 01:11:08]} {[%emt 00:10:24]} Be7 {[%clk 01:02:16]} {[%emt 00:29:17]}
11. Ne2 {[%clk 01:02:23]} {[%emt 00:09:16]} O-O {[%clk 01:00:37]} {[%emt
00:02:09]} 12. Nbd4 {[%clk 00:59:31]} {[%emt 00:03:22]} Bg4 {[%clk 00:47:32]}
{[%emt 00:13:34]} 13. Qe1 {[%clk 00:50:47]} {[%emt 00:09:15]} Qb6 {[%clk
00:45:29]} {[%emt 00:02:33]} 14. a4 {[%clk 00:16:37]} {[%emt 00:34:41]} a5
{[%clk 00:28:26]} {[%emt 00:17:31]} 15. Nb3 {[%clk 00:07:33]} {[%emt 00:09:34]}
Nb4 {[%clk 00:22:24]} {[%emt 00:06:33]} 16. Nbd4 {[%clk 00:01:07]} {[%emt
00:06:57]} Bc5 {[%clk 00:20:52]} {[%emt 00:02:01]} 17. Qd2 {[%clk 00:01:01]}
{[%emt 00:00:36]} Bxe2 {[%clk 00:20:02]} {[%emt 00:01:20]} 18. Nxe2 {[%clk
00:01:12]} {[%emt 00:00:19]} Ng4 {[%clk 00:20:19]} {[%emt 00:00:13]} 0-1

[Event "Mistrovství Čech mládeže 2023 - HD16"]
[Site "Harrachov, Czech Republic"]
[Date "2023.10.22"]
[Round "2.2"]
[White "Hozda, Max"]
[Black "Sochor, Antonín"]
[Result "1-0"]
[TimeControl "90m + 30s"]
[WhiteElo "2105"]
[BlackElo "1702"]

1. d4 {[%clk 01:30:33]} {[%emt 00:00:22]} d6 {[%clk 01:30:48]} {[%emt
00:00:17]} 2. Nf3 {[%clk 01:30:56]} {[%emt 00:00:06]} g6 {[%clk 01:31:08]}
{[%emt 00:00:10]} 3. c4 {[%clk 01:31:12]} {[%emt 00:00:15]} Bg7 {[%clk
01:31:28]} {[%emt 00:00:10]} 4. g3 {[%clk 01:31:35]} {[%emt 00:00:07]} Nd7
{[%clk 01:31:42]} {[%emt 00:00:16]} 5. Bg2 {[%clk 01:31:01]} {[%emt 00:01:04]}
e5 {[%clk 01:31:53]} {[%emt 00:00:19]} 6. O-O {[%clk 01:27:28]} {[%emt
00:04:02]} Ne7 {[%clk 01:32:04]} {[%emt 00:00:19]} 7. Nc3 {[%clk 01:24:55]}
{[%emt 00:03:03]} O-O {[%clk 01:32:06]} {[%emt 00:00:28]} 8. e3 {[%clk
01:21:59]} {[%emt 00:03:27]} Nb6 {[%clk 01:29:01]} {[%emt 00:03:34]} 9. b3
{[%clk 01:19:24]} {[%emt 00:03:06]} Bf5 {[%clk 01:28:17]} {[%emt 00:01:13]} 10.
Bb2 {[%clk 01:17:43]} {[%emt 00:02:11]} Qd7 {[%clk 01:26:08]} {[%emt 00:02:38]}
11. dxe5 {[%clk 00:46:19]} {[%emt 00:31:53]} dxe5 {[%clk 01:25:52]} {[%emt
00:00:46]} 12. Qxd7 {[%clk 00:44:19]} {[%emt 00:02:30]} Nxd7 {[%clk 01:26:01]}
{[%emt 00:00:21]} 13. Nh4 {[%clk 00:41:42]} {[%emt 00:03:07]} Be6 {[%clk
01:21:54]} {[%emt 00:04:37]} 14. Bxb7 {[%clk 00:39:45]} {[%emt 00:02:27]} Rab8
{[%clk 01:22:06]} {[%emt 00:00:18]} 15. Bd5 {[%clk 00:37:45]} {[%emt 00:02:31]}
Nxd5 {[%clk 01:21:32]} {[%emt 00:01:05]} 16. Nxd5 {[%clk 00:27:39]} {[%emt
00:10:35]} Bxd5 {[%clk 01:16:09]} {[%emt 00:05:53]} 17. cxd5 {[%clk 00:28:00]}
{[%emt 00:00:09]} Nb6 {[%clk 01:16:21]} {[%emt 00:00:18]} 18. e4 {[%clk
00:26:34]} {[%emt 00:01:56]} Na4 {[%clk 01:15:48]} {[%emt 00:01:04]} 19. Ba3
{[%clk 00:26:28]} {[%emt 00:00:35]} Nc3 {[%clk 01:15:32]} {[%emt 00:00:46]} 20.
Bxf8 {[%clk 00:25:16]} {[%emt 00:01:43]} Bxf8 {[%clk 01:15:34]} {[%emt
00:00:27]} 21. Rfe1 {[%clk 00:24:08]} {[%emt 00:01:38]} Bh6 {[%clk 01:13:49]}
{[%emt 00:02:15]} 22. Nf3 {[%clk 00:17:18]} {[%emt 00:07:20]} f6 {[%clk
01:11:54]} {[%emt 00:02:25]} 23. h4 {[%clk 00:13:29]} {[%emt 00:04:19]} Kf7
{[%clk 01:11:22]} {[%emt 00:01:02]} 24. Kg2 {[%clk 00:10:10]} {[%emt 00:03:49]}
Rb7 {[%clk 01:09:40]} {[%emt 00:02:12]} 25. h5 {[%clk 00:10:04]} {[%emt
00:00:37]} Kg7 {[%clk 01:09:27]} {[%emt 00:00:42]} 26. hxg6 {[%clk 00:08:52]}
{[%emt 00:01:43]} hxg6 {[%clk 01:09:38]} {[%emt 00:00:18]} 27. Rh1 {[%clk
00:08:16]} {[%emt 00:01:07]} Nxe4 {[%clk 01:07:28]} {[%emt 00:02:39]} 28. Rh4
{[%clk 00:07:42]} {[%emt 00:01:04]} Nd6 {[%clk 01:07:17]} {[%emt 00:00:41]} 29.
Rah1 {[%clk 00:07:33]} {[%emt 00:00:39]} Nf7 {[%clk 01:07:36]} {[%emt
00:00:11]} 30. Rc4 {[%clk 00:07:41]} {[%emt 00:00:23]} f5 {[%clk 01:06:28]}
{[%emt 00:01:37]} 31. Rc6 {[%clk 00:06:55]} {[%emt 00:01:17]} a5 {[%clk
01:05:26]} {[%emt 00:01:33]} 32. Re1 {[%clk 00:05:30]} {[%emt 00:01:54]} Nd8
{[%clk 01:01:11]} {[%emt 00:04:45]} 33. Ra6 {[%clk 00:04:10]} {[%emt 00:01:50]}
e4 {[%clk 00:57:58]} {[%emt 00:03:43]} 34. Ne5 {[%clk 00:04:20]} {[%emt
00:00:19]} Kh7 {[%clk 00:56:45]} {[%emt 00:01:43]} 35. Rh1 {[%clk 00:03:47]}
{[%emt 00:01:02]} Rb6 {[%clk 00:56:04]} {[%emt 00:01:12]} 36. Rxa5 {[%clk
00:02:50]} {[%emt 00:01:27]} Kg7 {[%clk 00:55:20]} {[%emt 00:01:13]} 37. Ra7
{[%clk 00:02:32]} {[%emt 00:00:49]} Nb7 {[%clk 00:54:12]} {[%emt 00:01:32]} 38.
Nc4 {[%clk 00:02:13]} {[%emt 00:00:54]} Rb5 {[%clk 00:51:52]} {[%emt 00:02:50]}
39. d6 {[%clk 00:02:42]} cxd6 {[%clk 00:51:47]} {[%emt 00:00:34]} 40. Nxd6
{[%clk 00:02:56]} {[%emt 00:00:17]} Rd5 {[%clk 00:51:33]} {[%emt 00:00:43]} 41.
Rxb7+ {[%clk 00:03:09]} {[%emt 00:00:17]} Kf6 {[%clk 00:51:26]} {[%emt
00:00:37]} 42. Ne8+ {[%clk 00:03:25]} {[%emt 00:00:15]} Kg5 {[%clk 00:50:45]}
{[%emt 00:02:30]} 43. Nc7 {[%clk 00:04:00]} {[%emt 00:01:47]} Rd2 {[%clk
00:50:11]} {[%emt 00:01:03]} 44. Ne6+ {[%clk 00:03:13]} {[%emt 00:01:17]} Kf6
{[%clk 00:49:54]} {[%emt 00:00:47]} 45. Rxh6 {[%clk 00:03:10]} {[%emt
00:00:33]} e3 {[%clk 00:49:15]} {[%emt 00:01:08]} 46. Nf4 {[%clk 00:03:09]}
{[%emt 00:00:31]} Rxf2+ {[%clk 00:48:34]} {[%emt 00:01:10]} 47. Kg1 {[%clk
00:03:32]} {[%emt 00:00:07]} Rxa2 {[%clk 00:46:56]} {[%emt 00:02:09]} 48. Rxg6+
{[%clk 00:03:50]} {[%emt 00:00:12]} Ke5 {[%clk 00:46:56]} {[%emt 00:00:29]} 49.
Re6+ {[%clk 00:03:59]} {[%emt 00:00:21]} Kd4 {[%clk 00:47:10]} {[%emt
00:00:15]} 50. Rd7+ {[%clk 00:04:19]} {[%emt 00:00:11]} 1-0

[Event "Mistrovství Čech mládeže 2023 - HD16"]
[Site "Harrachov, Czech Republic"]
[Date "2023.10.22"]
[Round "2.3"]
[White "Janoušková, Adéla"]
[Black "Hrbek, Jáchym"]
[Result "0-1"]
[TimeControl "90m + 30s"]
[WhiteElo "1638"]
[BlackElo "1973"]

1. e4 {[%clk 01:30:56]} {[%emt 00:00:03]} c6 {[%clk 01:30:38]} {[%emt
00:00:23]} 2. d4 {[%clk 01:30:48]} {[%emt 00:00:38]} d5 {[%clk 01:30:54]}
{[%emt 00:00:14]} 3. e5 {[%clk 01:31:03]} {[%emt 00:00:16]} c5 {[%clk
01:30:46]} {[%emt 00:00:38]} 4. c3 {[%clk 01:29:50]} {[%emt 00:01:42]} Nc6
{[%clk 01:31:02]} {[%emt 00:00:13]} 5. Nf3 {[%clk 01:28:21]} {[%emt 00:01:59]}
Bg4 {[%clk 01:31:11]} {[%emt 00:00:20]} 6. Be3 {[%clk 01:24:03]} {[%emt
00:04:49]} e6 {[%clk 01:29:29]} {[%emt 00:02:11]} 7. Be2 {[%clk 01:22:14]}
{[%emt 00:02:20]} cxd4 {[%clk 01:23:20]} {[%emt 00:06:38]} 8. cxd4 {[%clk
01:22:31]} {[%emt 00:00:14]} Nge7 {[%clk 01:23:03]} {[%emt 00:00:46]} 9. O-O
{[%clk 01:18:08]} {[%emt 00:04:54]} Nf5 {[%clk 01:21:38]} {[%emt 00:01:54]} 10.
Qd2 {[%clk 01:14:17]} {[%emt 00:04:22]} Be7 {[%clk 01:14:15]} {[%emt 00:07:52]}
11. h3 {[%clk 01:10:19]} {[%emt 00:04:29]} Bxf3 {[%clk 01:14:29]} {[%emt
00:00:16]} 12. Bxf3 {[%clk 01:10:26]} {[%emt 00:00:23]} Qb6 {[%clk 00:59:42]}
{[%emt 00:15:16]} 13. Rd1 {[%clk 01:07:31]} {[%emt 00:03:26]} O-O {[%clk
00:57:19]} {[%emt 00:02:53]} 14. Nc3 {[%clk 01:04:50]} {[%emt 00:03:11]} Rac8
{[%clk 00:54:15]} {[%emt 00:03:34]} 15. Rab1 {[%clk 00:46:47]} {[%emt
00:18:34]} Na5 {[%clk 00:48:03]} {[%emt 00:06:41]} 16. g4 {[%clk 00:43:42]}
{[%emt 00:03:35]} Nc4 {[%clk 00:38:22]} {[%emt 00:10:11]} 17. Qe2 {[%clk
00:41:26]} {[%emt 00:02:46]} Nfxe3 {[%clk 00:36:14]} {[%emt 00:02:38]} 18. fxe3
{[%clk 00:41:49]} {[%emt 00:00:07]} Bg5 {[%clk 00:35:32]} {[%emt 00:01:12]} 19.
Rd3 {[%clk 00:40:35]} {[%emt 00:01:45]} Nxe3 {[%clk 00:27:54]} {[%emt
00:08:07]} 20. Rxe3 {[%clk 00:38:50]} {[%emt 00:02:16]} Qxd4 {[%clk 00:28:12]}
{[%emt 00:00:12]} 21. Kf2 {[%clk 00:33:33]} {[%emt 00:05:47]} f5 {[%clk
00:19:56]} {[%emt 00:08:45]} 22. exf6 {[%clk 00:30:19]} {[%emt 00:03:46]} Rxf6
{[%clk 00:14:43]} {[%emt 00:05:41]} 23. Rd1 {[%clk 00:27:31]} {[%emt 00:03:19]}
Bxe3+ {[%clk 00:14:50]} {[%emt 00:00:23]} 24. Qxe3 {[%clk 00:27:52]} {[%emt
00:00:10]} Qb4 {[%clk 00:15:03]} {[%emt 00:00:16]} 25. Rd2 {[%clk 00:25:32]}
{[%emt 00:02:51]} Rcf8 {[%clk 00:15:15]} {[%emt 00:00:17]} 26. Kg3 {[%clk
00:22:46]} {[%emt 00:03:18]} d4 {[%clk 00:15:21]} {[%emt 00:00:23]} 27. Rxd4
{[%clk 00:22:41]} {[%emt 00:00:36]} Rxf3+ {[%clk 00:15:21]} {[%emt 00:00:30]}
0-1